[Event "Early-Titled-Tuesday-Blitz-August-29-2023"]
[Site "Chess.com"]
[Date "2023.08.29"]
[Round "4"]
[White "workhard91"]
[Black "Martial2008"]
[Result "1-0"]
[WhiteElo "2435"]
[BlackElo "2578"]
[TimeControl "180+1"]
[EndTime "8:39:39 PDT"]
[Termination "workhard91 won on time"]

1. e4 {[%clk 0:03:00.9]} 1... e5 {[%clk 0:02:57.8]} 2. Nf3 {[%clk 0:03:01]} 2...
Nf6 {[%clk 0:02:51.5]} 3. Nxe5 {[%clk 0:03:00.1]} 3... Nc6 {[%clk 0:02:51.3]} 4.
Nf3 {[%clk 0:02:41.7]} 4... Nxe4 {[%clk 0:02:50]} 5. d3 {[%clk 0:02:42.1]} 5...
Nf6 {[%clk 0:02:49.6]} 6. d4 {[%clk 0:02:42.6]} 6... d5 {[%clk 0:02:49.2]} 7.
Bd3 {[%clk 0:02:43.3]} 7... Bd6 {[%clk 0:02:45.2]} 8. c3 {[%clk 0:02:41.5]} 8...
Bg4 {[%clk 0:02:35.8]} 9. Nbd2 {[%clk 0:02:40.2]} 9... O-O {[%clk 0:02:35]} 10.
Qc2 {[%clk 0:02:40.2]} 10... Re8+ {[%clk 0:02:33.8]} 11. Kf1 {[%clk 0:02:40.8]}
11... Qe7 {[%clk 0:02:31.5]} 12. h3 {[%clk 0:02:38.1]} 12... Bh5 {[%clk
0:02:31.2]} 13. g3 {[%clk 0:02:34]} 13... Ne4 {[%clk 0:02:26.3]} 14. Kg2 {[%clk
0:02:30.7]} 14... Nxf2 {[%clk 0:01:58.1]} 15. Kxf2 {[%clk 0:02:22.8]} 15... Qe3+
{[%clk 0:01:57.3]} 16. Kg2 {[%clk 0:02:23.3]} 16... Bg6 {[%clk 0:01:57.5]} 17.
Bxg6 {[%clk 0:02:07.5]} 17... Qe2+ {[%clk 0:01:56.7]} 18. Kg1 {[%clk 0:02:07.9]}
18... Bxg3 {[%clk 0:01:56.2]} 19. Bxh7+ {[%clk 0:01:17.2]} 19... Kh8 {[%clk
0:01:53.9]} 20. Nf1 {[%clk 0:01:16.7]} 20... Qxf3 {[%clk 0:01:50.4]} 21. Qg2
{[%clk 0:01:17.2]} 21... Qf6 {[%clk 0:01:13.1]} 22. Qxg3 {[%clk 0:01:12.8]}
22... Kxh7 {[%clk 0:01:11.9]} 23. Rh2 {[%clk 0:01:13.4]} 23... Re4 {[%clk
0:01:04.7]} 24. Rf2 {[%clk 0:01:08.3]} 24... Qe6 {[%clk 0:01:03.8]} 25. Bf4
{[%clk 0:01:02.9]} 25... g5 {[%clk 0:00:57.4]} 26. Bxg5 {[%clk 0:00:54.5]} 26...
Rg8 {[%clk 0:00:52.5]} 27. Rf6 {[%clk 0:00:52]} 27... Qxf6 {[%clk 0:00:16]} 28.
Bxf6 {[%clk 0:00:52.9]} 28... Rxg3+ {[%clk 0:00:16.5]} 29. Nxg3 {[%clk
0:00:53.3]} 29... Re6 {[%clk 0:00:17]} 30. Rf1 {[%clk 0:00:48.8]} 30... Re3
{[%clk 0:00:12.4]} 31. Kg2 {[%clk 0:00:46.3]} 31... Rd3 {[%clk 0:00:12.4]} 32.
Rf2 {[%clk 0:00:42]} 32... Kg6 {[%clk 0:00:11.7]} 33. Be5 {[%clk 0:00:34.7]}
33... Nxe5 {[%clk 0:00:10.1]} 34. dxe5 {[%clk 0:00:35.6]} 34... c5 {[%clk
0:00:09.6]} 35. Nf1 {[%clk 0:00:30]} 35... d4 {[%clk 0:00:09.5]} 36. Rd2 {[%clk
0:00:26.7]} 36... Rxd2+ {[%clk 0:00:05.4]} 37. Nxd2 {[%clk 0:00:27.6]} 37... Kf5
{[%clk 0:00:06.2]} 38. cxd4 {[%clk 0:00:26.8]} 38... cxd4 {[%clk 0:00:07.1]} 39.
Nf3 {[%clk 0:00:27.4]} 39... d3 {[%clk 0:00:06]} 40. Kg3 {[%clk 0:00:25.8]}
40... Ke4 {[%clk 0:00:04.1]} 41. h4 {[%clk 0:00:24.8]} 41... Kf5 {[%clk
0:00:03.9]} 42. Kg2 {[%clk 0:00:20.7]} 42... Kg4 {[%clk 0:00:03.7]} 43. Kf2
{[%clk 0:00:21]} 43... d2 {[%clk 0:00:02.8]} 44. Nxd2 {[%clk 0:00:20.7]} 44...
Kxh4 {[%clk 0:00:03.7]} 45. Ke3 {[%clk 0:00:21.3]} 45... Kg5 {[%clk 0:00:03.1]}
46. Ne4+ {[%clk 0:00:20.2]} 46... Kf5 {[%clk 0:00:02.8]} 47. Kd4 {[%clk
0:00:21.1]} 47... Ke6 {[%clk 0:00:02.3]} 48. Ng5+ {[%clk 0:00:21.2]} 48... Ke7
{[%clk 0:00:01.9]} 49. Ne4 {[%clk 0:00:21.1]} 1-0

[Event "Early-Titled-Tuesday-Blitz-August-29-2023"]
[Site "Chess.com"]
[Date "2023.08.29"]
[Round "4"]
[White "Shivananda1964"]
[Black "laskakid"]
[Result "1-0"]
[WhiteElo "2453"]
[BlackElo "2159"]
[TimeControl "180+1"]
[EndTime "8:39:39 PDT"]
[Termination "Shivananda1964 won on time"]

1. e4 {[%clk 0:03:00.9]} 1... e5 {[%clk 0:02:59.6]} 2. Nf3 {[%clk 0:03:00.4]}
2... Nc6 {[%clk 0:02:59.8]} 3. d4 {[%clk 0:03:00.8]} 3... exd4 {[%clk
0:02:59.2]} 4. c3 {[%clk 0:03:01.7]} 4... d5 {[%clk 0:02:54.9]} 5. exd5 {[%clk
0:03:00.3]} 5... Qxd5 {[%clk 0:02:54.9]} 6. Be2 {[%clk 0:03:00.8]} 6... Bg4
{[%clk 0:02:43.2]} 7. cxd4 {[%clk 0:03:00.5]} 7... Bb4+ {[%clk 0:02:41.1]} 8.
Nc3 {[%clk 0:03:00.6]} 8... Bxf3 {[%clk 0:02:40.8]} 9. Bxf3 {[%clk 0:03:00.9]}
9... Qc4 {[%clk 0:02:40.4]} 10. Qb3 {[%clk 0:03:01.6]} 10... Qxb3 {[%clk
0:02:26.6]} 11. Bxc6+ {[%clk 0:03:00.2]} 11... bxc6 {[%clk 0:02:25.8]} 12. axb3
{[%clk 0:03:00.8]} 12... Nf6 {[%clk 0:02:13.2]} 13. Be3 {[%clk 0:02:56.8]} 13...
a5 {[%clk 0:02:08.8]} 14. Kd2 {[%clk 0:02:44.8]} 14... O-O-O {[%clk 0:02:07.3]}
15. Kc2 {[%clk 0:02:41.8]} 15... Rhe8 {[%clk 0:02:02.8]} 16. Rhd1 {[%clk
0:02:40.5]} 16... Ng4 {[%clk 0:01:57.1]} 17. Rd3 {[%clk 0:02:38.8]} 17... h6
{[%clk 0:01:44]} 18. h3 {[%clk 0:02:37.4]} 18... Nxe3+ {[%clk 0:01:37.6]} 19.
fxe3 {[%clk 0:02:37.4]} 19... Re6 {[%clk 0:01:35.2]} 20. Rf1 {[%clk 0:02:24.7]}
20... Rd7 {[%clk 0:01:24.8]} 21. Rf5 {[%clk 0:02:03.4]} 21... Rg6 {[%clk
0:01:17.7]} 22. g4 {[%clk 0:02:01.9]} 22... Re6 {[%clk 0:01:07.5]} 23. Ne2
{[%clk 0:01:44.6]} 23... Rde7 {[%clk 0:01:01]} 24. Rf3 {[%clk 0:01:44.6]} 24...
Bd6 {[%clk 0:00:53.5]} 25. Rc3 {[%clk 0:01:35.9]} 25... Kb7 {[%clk 0:00:50.9]}
26. Kd3 {[%clk 0:01:35.8]} 26... Kb6 {[%clk 0:00:47.3]} 27. Rc1 {[%clk
0:01:31.4]} 27... Rd7 {[%clk 0:00:43.2]} 28. Rcf1 {[%clk 0:01:27.5]} 28... f6
{[%clk 0:00:42.1]} 29. Nc3 {[%clk 0:01:27.3]} 29... Bb4 {[%clk 0:00:40.2]} 30.
Rf5 {[%clk 0:01:22]} 30... c5 {[%clk 0:00:34.1]} 31. Na4+ {[%clk 0:01:18.6]}
31... Kc6 {[%clk 0:00:24.9]} 32. Nxc5 {[%clk 0:01:15.3]} 32... Bxc5 {[%clk
0:00:24.9]} 33. Rxc5+ {[%clk 0:01:14.6]} 33... Kb6 {[%clk 0:00:25.1]} 34. Rff5
{[%clk 0:01:09.7]} 34... Rde7 {[%clk 0:00:24.2]} 35. Rb5+ {[%clk 0:01:09.6]}
35... Kc6 {[%clk 0:00:23.2]} 36. Rbc5+ {[%clk 0:01:02.9]} 36... Kb6 {[%clk
0:00:22.4]} 37. Rf3 {[%clk 0:01:02.5]} 37... c6 {[%clk 0:00:20.4]} 38. Rc3
{[%clk 0:00:56.4]} 38... Rd6 {[%clk 0:00:20.2]} 39. Kc4 {[%clk 0:00:56.5]} 39...
Rde6 {[%clk 0:00:19.4]} 40. Rd3 {[%clk 0:00:54.4]} 40... Rd6 {[%clk 0:00:18.4]}
41. b4 {[%clk 0:00:54.3]} 41... axb4 {[%clk 0:00:18]} 42. Kxb4 {[%clk
0:00:54.8]} 42... Rd5 {[%clk 0:00:14.7]} 43. Kc4 {[%clk 0:00:55]} 43... Rb5
{[%clk 0:00:14.5]} 44. b4 {[%clk 0:00:43.8]} 44... h5 {[%clk 0:00:14.6]} 45. Rf5
{[%clk 0:00:43]} 45... hxg4 {[%clk 0:00:13.4]} 46. hxg4 {[%clk 0:00:42.4]} 46...
Rc7 {[%clk 0:00:09.6]} 47. Rc5 {[%clk 0:00:39.9]} 47... Re7 {[%clk 0:00:07.3]}
48. Rc3 {[%clk 0:00:37.2]} 48... Rxc5+ {[%clk 0:00:06.7]} 49. bxc5+ {[%clk
0:00:35.6]} 49... Kc7 {[%clk 0:00:06.9]} 50. Kd3 {[%clk 0:00:35.6]} 50... Rd7
{[%clk 0:00:06.6]} 51. Ra3 {[%clk 0:00:34.6]} 51... Rd5 {[%clk 0:00:05.7]} 52.
Ra7+ {[%clk 0:00:33.5]} 52... Kd8 {[%clk 0:00:05.8]} 53. Rxg7 {[%clk 0:00:33.9]}
53... Kc8 {[%clk 0:00:03.7]} 54. e4 {[%clk 0:00:33.4]} 54... Rd8 {[%clk
0:00:02.7]} 55. Kc4 {[%clk 0:00:33.8]} 1-0

[Event "Early-Titled-Tuesday-Blitz-August-29-2023"]
[Site "Chess.com"]
[Date "2023.08.29"]
[Round "4"]
[White "Barbus89"]
[Black "GAZZAN_3000"]
[Result "0-1"]
[WhiteElo "2501"]
[BlackElo "2675"]
[TimeControl "180+1"]
[EndTime "8:39:40 PDT"]
[Termination "GAZZAN_3000 won on time"]

1. Nf3 {[%clk 0:03:00.2]} 1... d5 {[%clk 0:02:58.2]} 2. g3 {[%clk 0:02:59.6]}
2... Bg4 {[%clk 0:02:45.8]} 3. Bg2 {[%clk 0:02:59.1]} 3... c6 {[%clk 0:02:45.8]}
4. O-O {[%clk 0:02:58.3]} 4... Nd7 {[%clk 0:02:45.8]} 5. d4 {[%clk 0:02:58.6]}
5... e6 {[%clk 0:02:43.9]} 6. Nbd2 {[%clk 0:02:58.3]} 6... f5 {[%clk 0:02:39.6]}
7. h3 {[%clk 0:02:48.4]} 7... Bxf3 {[%clk 0:02:39.1]} 8. Nxf3 {[%clk 0:02:47.2]}
8... Ngf6 {[%clk 0:02:39.7]} 9. Bf4 {[%clk 0:02:40.7]} 9... Nb6 {[%clk
0:02:29.2]} 10. Ne5 {[%clk 0:02:20.3]} 10... Bd6 {[%clk 0:02:26]} 11. Nd3 {[%clk
0:02:15.8]} 11... O-O {[%clk 0:02:23.7]} 12. Bxd6 {[%clk 0:02:14.1]} 12... Qxd6
{[%clk 0:02:24.6]} 13. Ne5 {[%clk 0:02:05.8]} 13... Nbd7 {[%clk 0:02:23.2]} 14.
f4 {[%clk 0:02:01.9]} 14... Qc7 {[%clk 0:02:13.9]} 15. e3 {[%clk 0:01:58.4]}
15... Nxe5 {[%clk 0:02:12.9]} 16. fxe5 {[%clk 0:01:56.7]} 16... Ne4 {[%clk
0:02:08.7]} 17. Bxe4 {[%clk 0:01:54.9]} 17... dxe4 {[%clk 0:02:08.8]} 18. c3
{[%clk 0:01:50.6]} 18... c5 {[%clk 0:02:06.7]} 19. Qb3 {[%clk 0:01:49.2]} 19...
Rfe8 {[%clk 0:02:05]} 20. Qc4 {[%clk 0:01:34.7]} 20... g6 {[%clk 0:01:59.5]} 21.
Rad1 {[%clk 0:01:28.8]} 21... Rac8 {[%clk 0:01:53.9]} 22. Qb3 {[%clk 0:01:04.8]}
22... c4 {[%clk 0:01:48.5]} 23. Qa4 {[%clk 0:00:52.8]} 23... a6 {[%clk
0:01:44.2]} 24. Kg2 {[%clk 0:00:52.2]} 24... b5 {[%clk 0:01:22.7]} 25. Qxa6
{[%clk 0:00:37.9]} 25... Ra8 {[%clk 0:01:22.4]} 26. Qxb5 {[%clk 0:00:37.7]}
26... Reb8 {[%clk 0:01:22.5]} 27. Qc5 {[%clk 0:00:34.2]} 27... Rxb2+ {[%clk
0:01:22.3]} 28. Rf2 {[%clk 0:00:21.3]} 28... Rxf2+ {[%clk 0:01:13.6]} 29. Kxf2
{[%clk 0:00:22.2]} 29... Rxa2+ {[%clk 0:01:13.9]} 30. Kg1 {[%clk 0:00:20.8]}
30... Qd7 {[%clk 0:00:23.4]} 31. Qxc4 {[%clk 0:00:17.8]} 31... Ra4 {[%clk
0:00:23.5]} 32. Qb3 {[%clk 0:00:16.4]} 32... Kg7 {[%clk 0:00:22.7]} 33. c4
{[%clk 0:00:13.7]} 33... Ra7 {[%clk 0:00:18.6]} 34. d5 {[%clk 0:00:12.9]} 34...
Qe7 {[%clk 0:00:17.3]} 35. d6 {[%clk 0:00:11.6]} 35... Qg5 {[%clk 0:00:17.2]}
36. g4 {[%clk 0:00:03.6]} 36... fxg4 {[%clk 0:00:17.2]} 37. Kh1 {[%clk
0:00:01.8]} 37... gxh3 {[%clk 0:00:17.5]} 38. Rg1 {[%clk 0:00:02.5]} 38... Qxe5
{[%clk 0:00:16.2]} 39. Qb6 {[%clk 0:00:01.8]} 39... Ra2 {[%clk 0:00:12.8]} 40.
Qb7+ {[%clk 0:00:01.6]} 40... Kh6 {[%clk 0:00:12.7]} 0-1

[Event "Early-Titled-Tuesday-Blitz-August-29-2023"]
[Site "Chess.com"]
[Date "2023.08.29"]
[Round "4"]
[White "denizozen"]
[Black "MBA_CHESS_2021"]
[Result "1/2-1/2"]
[WhiteElo "2862"]
[BlackElo "2293"]
[TimeControl "180+1"]
[EndTime "8:39:41 PDT"]
[Termination "Game drawn by agreement"]

1. d4 {[%clk 0:03:00.9]} 1... d5 {[%clk 0:02:59.5]} 2. Nf3 {[%clk 0:03:01.4]}
2... Nf6 {[%clk 0:02:59.2]} 3. Bf4 {[%clk 0:03:02.2]} 3... c6 {[%clk 0:02:59]}
4. e3 {[%clk 0:03:02.4]} 4... Bg4 {[%clk 0:02:58.4]} 5. c4 {[%clk 0:03:02.5]}
5... Bxf3 {[%clk 0:02:57.7]} 6. Qxf3 {[%clk 0:03:02.3]} 6... e6 {[%clk
0:02:57.1]} 7. Nc3 {[%clk 0:03:02.3]} 7... Nbd7 {[%clk 0:02:57.3]} 8. Bd3 {[%clk
0:03:02.1]} 8... Be7 {[%clk 0:02:57.7]} 9. O-O {[%clk 0:03:02.2]} 9... O-O
{[%clk 0:02:57.9]} 10. cxd5 {[%clk 0:03:02.2]} 10... exd5 {[%clk 0:02:56.9]} 11.
h3 {[%clk 0:03:01.7]} 11... Re8 {[%clk 0:02:56.8]} 12. Rab1 {[%clk 0:03:01.3]}
12... Nf8 {[%clk 0:02:55.9]} 13. b4 {[%clk 0:03:00.1]} 13... a6 {[%clk
0:02:55.6]} 14. a4 {[%clk 0:03:00.4]} 14... Qd7 {[%clk 0:02:36]} 15. b5 {[%clk
0:02:54.1]} 15... axb5 {[%clk 0:02:35.9]} 16. axb5 {[%clk 0:02:55]} 16... Ra3
{[%clk 0:02:36.2]} 17. Rfc1 {[%clk 0:02:53.4]} 17... Rea8 {[%clk 0:02:33.3]} 18.
Be5 {[%clk 0:02:48.6]} 18... Ng6 {[%clk 0:02:24]} 19. bxc6 {[%clk 0:02:36.7]}
19... bxc6 {[%clk 0:02:22.9]} 20. Bg3 {[%clk 0:02:24.1]} 20... Bd6 {[%clk
0:02:05.9]} 21. Bf5 {[%clk 0:02:18.5]} 21... Qe7 {[%clk 0:02:02.4]} 22. Bxg6
{[%clk 0:01:51]} 22... hxg6 {[%clk 0:02:00.7]} 23. Bxd6 {[%clk 0:01:51.5]} 23...
Qxd6 {[%clk 0:02:00.2]} 24. Ne2 {[%clk 0:01:50.1]} 24... Ne4 {[%clk 0:01:56.9]}
25. Qf4 {[%clk 0:01:46.4]} 25... Qe6 {[%clk 0:01:38.4]} 26. Rb8+ {[%clk
0:01:44.7]} 26... Rxb8 {[%clk 0:01:25.9]} 27. Qxb8+ {[%clk 0:01:45.6]} 27... Kh7
{[%clk 0:01:25.6]} 28. Nf4 {[%clk 0:01:30.3]} 28... Qf6 {[%clk 0:01:24.5]} 29.
Qe5 {[%clk 0:01:06.7]} 29... g5 {[%clk 0:01:06]} 30. Qxf6 {[%clk 0:01:02.8]}
30... gxf6 {[%clk 0:01:05.6]} 31. Nh5 {[%clk 0:00:49.3]} 31... Kg6 {[%clk
0:01:05.3]} 32. g4 {[%clk 0:00:49.8]} 32... Ra2 {[%clk 0:01:01.1]} 33. f4 {[%clk
0:00:42.2]} 33... gxf4 {[%clk 0:00:55.7]} 34. exf4 {[%clk 0:00:40]} 34... Ra6
{[%clk 0:00:46.3]} 35. Rb1 {[%clk 0:00:29.1]} 35... f5 {[%clk 0:00:44.8]} 36.
Rb8 {[%clk 0:00:27.7]} 36... fxg4 {[%clk 0:00:42.3]} 37. hxg4 {[%clk 0:00:28.6]}
37... f5 {[%clk 0:00:39.6]} 38. Rg8+ {[%clk 0:00:19]} 38... Kh7 {[%clk 0:00:38]}
39. Rf8 {[%clk 0:00:09.3]} 39... fxg4 {[%clk 0:00:37.8]} 40. Nf6+ {[%clk
0:00:10]} 40... Kg7 {[%clk 0:00:37.1]} 41. Nd7 {[%clk 0:00:07.7]} 41... Ra7
{[%clk 0:00:31.6]} 42. Rd8 {[%clk 0:00:08]} 42... Nd2 {[%clk 0:00:22.5]} 43. Ne5
{[%clk 0:00:08.1]} 43... Nf3+ {[%clk 0:00:21.9]} 44. Nxf3 {[%clk 0:00:08.3]}
44... gxf3 {[%clk 0:00:21.7]} 45. Kf2 {[%clk 0:00:09]} 45... Ra3 {[%clk
0:00:20.1]} 46. Rd6 {[%clk 0:00:09.2]} 46... Rc3 {[%clk 0:00:20]} 47. f5 {[%clk
0:00:09.8]} 47... Kf7 {[%clk 0:00:19.9]} 48. Rh6 {[%clk 0:00:10.2]} 48... Ke7
{[%clk 0:00:19]} 49. Re6+ {[%clk 0:00:10.5]} 49... Kf7 {[%clk 0:00:19.1]} 50.
Rh6 {[%clk 0:00:10.9]} 50... Ke7 {[%clk 0:00:15.6]} 1/2-1/2

[Event "Early-Titled-Tuesday-Blitz-August-29-2023"]
[Site "Chess.com"]
[Date "2023.08.29"]
[Round "4"]
[White "only_strong_moves"]
[Black "KNVB"]
[Result "1/2-1/2"]
[WhiteElo "2525"]
[BlackElo "2784"]
[TimeControl "180+1"]
[EndTime "8:39:43 PDT"]
[Termination "Game drawn by repetition"]

1. d4 {[%clk 0:02:58.3]} 1... e5 {[%clk 0:02:59.4]} 2. dxe5 {[%clk 0:02:58.1]}
2... Nc6 {[%clk 0:02:59.2]} 3. Nf3 {[%clk 0:02:58.4]} 3... Qe7 {[%clk
0:02:59.6]} 4. g3 {[%clk 0:02:58]} 4... Nxe5 {[%clk 0:02:59.8]} 5. Nxe5 {[%clk
0:02:57.8]} 5... Qxe5 {[%clk 0:03:00.7]} 6. Bg2 {[%clk 0:02:58]} 6... Bc5 {[%clk
0:03:00.6]} 7. O-O {[%clk 0:02:57.8]} 7... d6 {[%clk 0:02:59.2]} 8. Nc3 {[%clk
0:02:57.9]} 8... Nf6 {[%clk 0:02:59.3]} 9. e4 {[%clk 0:02:43.8]} 9... Bg4 {[%clk
0:02:54.1]} 10. Qd3 {[%clk 0:02:43.7]} 10... Qh5 {[%clk 0:02:54.3]} 11. Qb5+
{[%clk 0:02:24.6]} 11... Bd7 {[%clk 0:02:53.9]} 12. Qe2 {[%clk 0:02:10.5]} 12...
Qxe2 {[%clk 0:02:49.7]} 13. Nxe2 {[%clk 0:02:11.4]} 13... Bc6 {[%clk 0:02:50.3]}
14. Nc3 {[%clk 0:01:14.2]} 14... O-O {[%clk 0:01:47.1]} 15. Bg5 {[%clk
0:01:13.5]} 15... Bd4 {[%clk 0:01:45.9]} 16. Bxf6 {[%clk 0:01:14.2]} 16... Bxf6
{[%clk 0:01:44.8]} 17. Nd1 {[%clk 0:01:01.7]} 17... Rae8 {[%clk 0:01:31.6]} 18.
f3 {[%clk 0:00:59.5]} 18... d5 {[%clk 0:00:51.4]} 19. exd5 {[%clk 0:00:57.8]}
19... Bb5 {[%clk 0:00:52]} 20. c3 {[%clk 0:00:21.5]} 20... Bxf1 {[%clk
0:00:18.4]} 21. Kxf1 {[%clk 0:00:22.4]} 21... g6 {[%clk 0:00:06.8]} 22. Nf2
{[%clk 0:00:22.9]} 22... Kg7 {[%clk 0:00:06.8]} 23. Ne4 {[%clk 0:00:23.2]} 23...
Be7 {[%clk 0:00:07.1]} 24. Rd1 {[%clk 0:00:22]} 24... Rd8 {[%clk 0:00:07.4]} 25.
f4 {[%clk 0:00:20.6]} 25... Rfe8 {[%clk 0:00:05.4]} 26. b4 {[%clk 0:00:18.8]}
26... Bf8 {[%clk 0:00:03.9]} 27. Kf2 {[%clk 0:00:16.5]} 27... h6 {[%clk
0:00:03.9]} 28. Bf3 {[%clk 0:00:06.4]} 28... b6 {[%clk 0:00:04]} 29. a3 {[%clk
0:00:05.2]} 29... f5 {[%clk 0:00:03.8]} 30. Nd2 {[%clk 0:00:04.8]} 30... b5
{[%clk 0:00:02.4]} 31. Nb3 {[%clk 0:00:04.7]} 31... Bd6 {[%clk 0:00:01.9]} 32.
Nd4 {[%clk 0:00:05]} 32... Kf6 {[%clk 0:00:02.1]} 33. Nxb5 {[%clk 0:00:05]}
33... a6 {[%clk 0:00:02.5]} 34. Nd4 {[%clk 0:00:05.4]} 34... Bf8 {[%clk
0:00:02.5]} 35. Nc6 {[%clk 0:00:04.9]} 35... Rd6 {[%clk 0:00:02.8]} 36. c4
{[%clk 0:00:04.9]} 36... Rd7 {[%clk 0:00:02.9]} 37. Ne5 {[%clk 0:00:04.4]} 37...
Rdd8 {[%clk 0:00:03]} 38. c5 {[%clk 0:00:04.2]} 38... g5 {[%clk 0:00:03.4]} 39.
Nc4 {[%clk 0:00:04.2]} 39... gxf4 {[%clk 0:00:03.3]} 40. gxf4 {[%clk 0:00:05.1]}
40... Bg7 {[%clk 0:00:03]} 41. Ne5 {[%clk 0:00:05.2]} 41... Rg8 {[%clk
0:00:02.4]} 42. Rg1 {[%clk 0:00:05]} 42... Bh8 {[%clk 0:00:02.5]} 43. Re1 {[%clk
0:00:05.1]} 43... Rgf8 {[%clk 0:00:02.2]} 44. Rg1 {[%clk 0:00:04.1]} 44... Rg8
{[%clk 0:00:02.6]} 45. Re1 {[%clk 0:00:04.5]} 45... Rde8 {[%clk 0:00:02.2]} 46.
Bh5 {[%clk 0:00:04.6]} 46... Rd8 {[%clk 0:00:02.3]} 47. Bf3 {[%clk 0:00:04.2]}
1/2-1/2

[Event "Early-Titled-Tuesday-Blitz-August-29-2023"]
[Site "Chess.com"]
[Date "2023.08.29"]
[Round "4"]
[White "snowlord"]
[Black "KChor05TTV"]
[Result "1-0"]
[WhiteElo "2914"]
[BlackElo "2598"]
[TimeControl "180+1"]
[EndTime "8:39:47 PDT"]
[Termination "snowlord won by resignation"]

1. d4 {[%clk 0:03:00.9]} 1... Nf6 {[%clk 0:02:59.9]} 2. c4 {[%clk 0:03:01]} 2...
g6 {[%clk 0:02:59.9]} 3. g3 {[%clk 0:02:59.5]} 3... Bg7 {[%clk 0:03:00.3]} 4.
Bg2 {[%clk 0:02:59.9]} 4... O-O {[%clk 0:03:01]} 5. Nc3 {[%clk 0:03:00.4]} 5...
d6 {[%clk 0:03:01.2]} 6. Nf3 {[%clk 0:03:00.7]} 6... Nc6 {[%clk 0:03:00.6]} 7.
O-O {[%clk 0:02:51]} 7... Bf5 {[%clk 0:03:00.7]} 8. Ne1 {[%clk 0:02:49.3]} 8...
Qc8 {[%clk 0:02:53.5]} 9. e4 {[%clk 0:02:37.7]} 9... Bh3 {[%clk 0:02:51.8]} 10.
Nc2 {[%clk 0:02:37.2]} 10... Bxg2 {[%clk 0:02:49.8]} 11. Kxg2 {[%clk 0:02:37.7]}
11... Nd7 {[%clk 0:02:43.9]} 12. Be3 {[%clk 0:02:29.4]} 12... e5 {[%clk
0:02:27.9]} 13. Nd5 {[%clk 0:02:16.9]} 13... Re8 {[%clk 0:02:23]} 14. f3 {[%clk
0:02:14.1]} 14... Nb6 {[%clk 0:02:08.9]} 15. Nxb6 {[%clk 0:01:45.1]} 15... axb6
{[%clk 0:02:09.8]} 16. d5 {[%clk 0:01:44.9]} 16... Ne7 {[%clk 0:02:07.2]} 17. a4
{[%clk 0:01:44.7]} 17... f5 {[%clk 0:01:56.3]} 18. Ra3 {[%clk 0:01:38.9]} 18...
Qd7 {[%clk 0:01:54.9]} 19. Nb4 {[%clk 0:01:31.4]} 19... Rf8 {[%clk 0:01:52.2]}
20. Nd3 {[%clk 0:01:30.9]} 20... f4 {[%clk 0:01:36.5]} 21. gxf4 {[%clk
0:01:26.8]} 21... exf4 {[%clk 0:01:37.3]} 22. Nxf4 {[%clk 0:01:27]} 22... Bxb2
{[%clk 0:01:22.5]} 23. Ra2 {[%clk 0:01:27.4]} 23... Bh8 {[%clk 0:01:17.4]} 24.
Ne6 {[%clk 0:01:26.7]} 24... Rf6 {[%clk 0:01:16.1]} 25. Bd4 {[%clk 0:01:08]}
25... Rxe6 {[%clk 0:01:14.9]} 26. Bxh8 {[%clk 0:01:03.8]} 26... Kxh8 {[%clk
0:01:15.8]} 27. dxe6 {[%clk 0:01:00]} 27... Qxe6 {[%clk 0:01:16.7]} 28. Qd4+
{[%clk 0:01:00.1]} 28... Kg8 {[%clk 0:01:16.8]} 29. Rb1 {[%clk 0:00:41.4]} 29...
Rf8 {[%clk 0:01:03.3]} 30. Rb5 {[%clk 0:00:33.9]} 30... c5 {[%clk 0:00:53.9]}
31. Qd3 {[%clk 0:00:28.3]} 31... g5 {[%clk 0:00:54]} 32. Kh1 {[%clk 0:00:22.1]}
32... Qh3 {[%clk 0:00:46.2]} 33. Rf2 {[%clk 0:00:21.3]} 33... Nc6 {[%clk
0:00:32.9]} 34. Rxb6 {[%clk 0:00:20.5]} 34... Nd4 {[%clk 0:00:25.7]} 35. Rxd6
{[%clk 0:00:20.1]} 35... g4 {[%clk 0:00:17.2]} 36. Rd5 {[%clk 0:00:16.7]} 36...
Nxf3 {[%clk 0:00:08.6]} 37. Rxc5 {[%clk 0:00:17.1]} 37... Qh4 {[%clk 0:00:06.1]}
38. Qf1 {[%clk 0:00:02.6]} 38... Rd8 {[%clk 0:00:05.5]} 39. Rd5 {[%clk
0:00:02.6]} 39... Rf8 {[%clk 0:00:05.8]} 40. Qg2 {[%clk 0:00:02.4]} 40... h5
{[%clk 0:00:05.2]} 41. Qg3 {[%clk 0:00:02.8]} 41... Qf6 {[%clk 0:00:02.6]} 42.
Kg2 {[%clk 0:00:02.8]} 42... h4 {[%clk 0:00:02.6]} 43. Qxg4+ {[%clk 0:00:03.2]}
43... Kh7 {[%clk 0:00:03.4]} 44. Rxf3 {[%clk 0:00:03.7]} 44... Rg8 {[%clk
0:00:03.4]} 45. Qxg8+ {[%clk 0:00:03.3]} 45... Kxg8 {[%clk 0:00:03.6]} 46. Rxf6
{[%clk 0:00:04.2]} 46... Kg7 {[%clk 0:00:04.5]} 47. Rff5 {[%clk 0:00:05.1]}
47... h3+ {[%clk 0:00:04.5]} 48. Kxh3 {[%clk 0:00:05.1]} 48... Kg6 {[%clk
0:00:05.4]} 49. Rb5 {[%clk 0:00:05.7]} 1-0